fUSD/lending_fUSD_20260227
["ID","MTS","AMOUNT","RATE_DAILY","PERIOD"]
[406815770,1772206244018,-563.9784206,0.00013698,2]
[406815771,1772206244027,-500.0,0.00013698,2]
[406815772,1772206244036,-500.0,0.00013698,2]
[406815773,1772206244046,-500.0,0.00013698,2]
[406815774,1772206244055,-500.0,0.00013698,2]
[406815775,1772206244064,-500.0,0.00013698,2]
[406815776,1772206244073,-500.0,0.00013698,2]
[406815777,1772206244084,-500.0,0.00013698,2]
[406815778,1772206244094,-500.0,0.00013698,2]
[406815779,1772206244103,-500.0,0.00013698,2]
[406815780,1772206244112,-500.0,0.00013698,2]
[406815781,1772206244122,-500.0,0.00013698,2]
[406815782,1772206244131,-500.0,0.00013698,2]
[406815783,1772206244140,-500.0,0.00013698,2]
[406815784,1772206244150,-500.0,0.00013698,2]
[406815785,1772206244162,-500.0,0.00013698,2]
[406815786,1772206244174,-500.0,0.00013698,2]
[406815787,1772206244183,-500.0,0.00013698,2]
[406815788,1772206244192,-500.0,0.00013698,2]
[406815789,1772206244202,-500.0,0.00013698,2]
[406815790,1772206244211,-500.0,0.00013698,2]
[406815791,1772206244220,-500.0,0.00013698,2]
[406815792,1772206244229,-500.0,0.00013698,2]
[406815793,1772206244239,-500.0,0.00013698,2]
[406815794,1772206244248,-500.0,0.00013698,2]
[406815795,1772206244257,-500.0,0.00013698,2]
[406815796,1772206244266,-500.0,0.00013698,2]
[406815797,1772206244276,-500.0,0.00013698,2]
[406815798,1772206244285,-500.0,0.00013698,2]
[406815799,1772206244295,-500.0,0.00013698,2]
[406815800,1772206244304,-500.0,0.00013698,2]
[406815801,1772206244314,-500.0,0.00013698,2]
[406815802,1772206244323,-500.0,0.00013698,2]
[406815803,1772206244333,-29999.99,0.00013699,2]
[406815804,1772206244342,-9999.99,0.00013699,2]
[406815805,1772206244351,-2657.75,0.00013699,2]
[406815806,1772206244360,-18624.32,0.000137,2]
[406815807,1772206244369,-18624.32,0.000137,2]
[406815808,1772206244379,-1232.0,0.00014053,2]
[406815809,1772206244388,-1135.739669,0.00014108,7]
[406815810,1772206244397,-2045.958033,0.00014108,7]
[406815811,1772206244406,-524.000881,0.00014108,7]
[406815812,1772206244416,-1234.0,0.00014123,2]
[406815813,1772206244426,-500.0,0.0001445,2]
[406815814,1772206244435,-500.0,0.0001445,2]
[406815815,1772206244445,-583.33,0.0001445,2]
[406815816,1772206244455,-500.0,0.0001445,2]
[406815817,1772206244464,-500.0,0.0001445,2]
[406815818,1772206244474,-500.0,0.0001445,2]
[406815819,1772206244483,-482.68275805,0.00014451,2]
[406815820,1772206244493,-482.68275809,0.00014451,2]
[406815821,1772206244502,-482.68275809,0.00014451,2]
[406815822,1772206244511,-482.68275809,0.00014451,2]
[406815823,1772206244521,-482.68275809,0.00014451,2]
[406815824,1772206244530,-482.68275809,0.00014451,2]
[406815825,1772206244539,-482.68275809,0.00014451,2]
[406815826,1772206244549,-482.68275809,0.00014451,2]
[406815827,1772206244558,-482.68275809,0.00014451,2]
[406815828,1772206244567,-482.68275809,0.00014451,2]
[406815829,1772206244577,-482.68275809,0.00014451,2]
[406815830,1772206244586,-482.68275809,0.00014451,2]
[406815831,1772206244595,-482.68275809,0.00014451,2]
[406815832,1772206244604,-482.68275809,0.00014451,2]
[406815833,1772206244614,-482.68275809,0.00014451,2]
[406815834,1772206244623,-482.68275809,0.00014451,2]
[406815835,1772206244633,-482.68275809,0.00014451,2]
[406815836,1772206244643,-482.68275809,0.00014451,2]
[406815837,1772206244652,-482.68275809,0.00014451,2]
[406815838,1772206244661,-509.0,0.0001489,2]
[406815839,1772206244670,-250.0,0.00015,2]
[406815840,1772206244680,-2195.67203992,0.00015271,2]
[406815841,1772206244689,-300.0,0.00017,2]
[406815842,1772206244699,-174.00015664,0.00017329,2]
[406815843,1772206244708,-16878.76992952,0.00017367,2]
[406815844,1772206244717,-39740.82213888,0.00017728,2]
[406815845,1772206244727,-308.59204947,0.00017973,2]
[406815846,1772206244736,-500.0,0.00017973,2]
[406815847,1772206244746,-501.50601316,0.00017973,2]
[406815848,1772206244755,-500.0,0.00017973,2]
[406815849,1772206244765,-500.0,0.00017973,2]
[406815850,1772206244774,-500.82123681,0.00017973,2]
[406815851,1772206244783,-504.17214118,0.00017973,2]
[406815852,1772206244792,-502.2190815,0.00017973,2]
[406815853,1772206244802,-500.0,0.00017973,2]
[406815854,1772206244811,-500.0,0.00017999,2]
[406815855,1772206244820,-500.0,0.00017999,2]
[406815856,1772206244830,-500.0,0.00017999,2]
[406815857,1772206244839,-500.0,0.00017999,2]
[406815858,1772206244848,-500.0,0.00017999,2]
[406815859,1772206244857,-386.19326799,0.00017999,2]
[406815860,1772206244867,-500.0,0.00017999,2]
[406815861,1772206244876,-500.0,0.00017999,2]
[406815862,1772206244885,-500.0,0.00017999,2]
[406815863,1772206244895,-500.0,0.00017999,2]
[406815864,1772206244904,-500.0,0.00017999,2]
[406815865,1772206244913,-500.0,0.00017999,2]
[406815866,1772206244922,-500.0,0.00017999,2]
[406815867,1772206244931,-583.33,0.00017999,2]
[406815868,1772206244941,-583.33,0.00017999,2]
[406815869,1772206244951,-583.33,0.00017999,2]
[406815870,1772206244960,-583.33,0.00017999,2]
[406815872,1772206244969,-583.33,0.00017999,2]
[406815874,1772206244979,-583.33,0.00017999,2]
[406815876,1772206244988,-583.33,0.00017999,2]
[406815878,1772206244997,-583.33,0.00017999,2]
[406815880,1772206245006,-500.0,0.00017999,2]
[406815882,1772206245015,-500.0,0.00017999,2]
[406815884,1772206245024,-500.0,0.00017999,2]
[406815886,1772206245033,-500.0,0.00017999,2]
[406815888,1772206245042,-500.0,0.00017999,2]
[406815890,1772206245051,-500.0,0.00017999,2]
[406815892,1772206245061,-500.0,0.00017999,2]
[406815894,1772206245070,-500.0,0.00017999,2]
[406815896,1772206245083,-500.0,0.00017999,2]
[406815898,1772206245092,-500.0,0.00017999,2]
[406815900,1772206245101,-500.0,0.00017999,2]
[406815902,1772206245110,-210.48,0.00017999,2]
[406815904,1772206245120,-500.0,0.00017999,2]
[406815906,1772206245130,-500.0,0.00017999,2]
[406815908,1772206245140,-500.0,0.00017999,2]
[406815910,1772206245149,-500.0,0.00017999,2]
[406815912,1772206245159,-413.53601113,0.00017999,2]
[406815914,1772206245169,-200.0,0.00018128,2]
[406815916,1772206245179,-2650.059229,0.0001881,7]
[406815918,1772206245188,-4773.902077,0.0001881,7]
[406815919,1772206245197,-436.667401,0.0001881,7]
[406815922,1772206245207,-151.0,0.0002,120]
[406815923,1772206245216,-2195.67203992,0.00021043,2]
[406815927,1772206245225,-16878.76992952,0.000213,2]
[406815930,1772206245234,-39740.82213888,0.00021772,2]
[406815932,1772206245243,-509.0,0.00022125,8]
[406815934,1772206245252,-895.83,0.00023166,2]
[406815938,1772206245261,-620.13,0.00023166,2]
[406815940,1772206245271,-306.73,0.00023994,2]
[406815941,1772206245280,-1000.0,0.00024658,2]
[406815945,1772206245290,-150.0,0.00024658,2]
[406815948,1772206245299,-16878.76992952,0.00025233,2]
[406815951,1772206245308,-39740.82213888,0.00025815,2]
[406815953,1772206245318,-150.0,0.0002589,2]
[406815956,1772206245327,-500.0,0.00026052,2]
[406815959,1772206245336,-500.0,0.00026052,2]
[406815962,1772206245344,-164.82,0.00026263,2]
[406815964,1772206245354,-2195.67203992,0.00026814,2]
[406815966,1772206245363,-166.26,0.00026879,2]
[406815968,1772206245372,-150.0,0.00027185,2]
[406815970,1772206245381,-300.0,0.00027397,2]
[406815972,1772206245391,-169.18,0.00027933,2]
[406815974,1772206245399,-150.0,0.00028544,2]
[406815976,1772206245409,-583.33,0.00028987,120]
[406815978,1772206245418,-500.0,0.00028987,120]
[406815979,1772206245427,-16878.76992952,0.00029167,2]
[406815981,1772206245436,-509.0,0.00029359,14]
[406815982,1772206245445,-1783.25363654,0.00029687,2]
[406815983,1772206245454,-39740.82213888,0.00029859,2]
[406815984,1772206245463,-4799.34212234,0.00029875,2]
[406815985,1772206245473,-150.0,0.00029971,2]
[406815986,1772206245483,-670.0,0.00031152,30]
[406815987,1772206245493,-1073.0,0.00031152,30]
[406815988,1772206245502,-150.0,0.0003147,2]
[406815989,1772206245511,-203.73,0.000315,30]
[406815990,1772206245520,-214.78,0.00032472,14]
[406815991,1772206245530,-2195.67203992,0.00032586,2]
[406815992,1772206245539,-1488.33,0.000329,2]
[406815993,1772206245549,-161.05,0.000329,14]
[406815994,1772206245559,-1097.67,0.000329,14]
[406815995,1772206245568,-685.01,0.000329,14]
[406815996,1772206245577,-150.0,0.00033,30]
[406815997,1772206245586,-150.0,0.00033043,2]
[406815998,1772206245595,-16878.76992952,0.000331,2]
[406815999,1772206245605,-306.73,0.00033806,2]
[406816000,1772206245614,-39740.82213888,0.00033902,2]
[406816001,1772206245623,-194.26,0.000346,30]
[406816002,1772206245633,-945.548,0.0003463,39]
[406816003,1772206245642,-150.0,0.00034696,2]
[406816004,1772206245652,-1500.0,0.00034795,2]
[406816005,1772206245661,-2500.0,0.00036081,10]
[406816006,1772206245670,-1488.33,0.000361,2]
[406816007,1772206245680,-1000.0,0.00036135,2]
[406816008,1772206245689,-1000.0,0.00036135,2]
[406816009,1772206245698,-1000.0,0.00036135,2]
[406816010,1772206245708,-1000.0,0.00036135,2]
[406816011,1772206245718,-1000.0,0.00036135,2]
[406816012,1772206245727,-1698.94,0.00036229,10]
[406816013,1772206245736,-303.28,0.000363,30]
[406816014,1772206245746,-150.0,0.0003643,2]
[406816015,1772206245755,-921.0,0.00036498,2]
[406816016,1772206245764,-1211.0,0.00036498,2]
[406816017,1772206245773,-3498.0,0.00036498,2]
[406816018,1772206245782,-2456.0,0.00036498,2]
[406816019,1772206245792,-8677.79,0.00036509,10]
[406816020,1772206245801,-509.0,0.00036593,21]
[406816021,1772206245811,-2500.0,0.00036608,10]
[406816022,1772206245821,-2500.0,0.00036841,10]
[406816023,1772206245830,-895.83,0.00036847,120]
[406816024,1772206245840,-620.13,0.00036847,120]
[406816025,1772206245849,-5000.0,0.00036848,2]
[406816026,1772206245859,-927.15,0.0003686,10]
[406816027,1772206245868,-16878.76992952,0.00037033,2]
[406816028,1772206245877,-1097.67,0.000371,14]
[406816029,1772206245887,-685.01,0.000371,14]
[406816030,1772206245896,-39740.82213888,0.00037946,2]
[406816031,1772206245907,-76695.0,0.00038,2]
[406816032,1772206245916,-500.0,0.00038082,2]
[406816033,1772206245926,-7567.11510619,0.000381,33]
[406816034,1772206245935,-150.0,0.00038252,2]
[406816035,1772206245944,-2195.67203992,0.00038357,2]
[406816036,1772206245954,-1488.33,0.00039,30]
[406816037,1772206245963,-5531.0,0.000391,3]
[406816038,1772206245972,-500.0,0.00039123,2]
[406816039,1772206245981,-916.0,0.00039498,2]
[406816040,1772206245991,-1211.0,0.00039498,2]
[406816041,1772206246000,-3496.0,0.00039498,2]
[406816042,1772206246009,-1663.438,0.00039498,2]
[406816043,1772206246018,-11856.0,0.000396,5]
[406816044,1772206246028,-240.00000001,0.0003991,5]
[406816045,1772206246038,-5364.04,0.0004,120]
[406816046,1772206246047,-15000.0,0.0004,120]
[406816047,1772206246056,-156.0,0.0004,120]
[406816048,1772206246066,-150.0,0.00040165,2]
[406816049,1772206246075,-214.78,0.00040286,14]
[406816050,1772206246087,-5531.0,0.000403,5]
[406816051,1772206246096,-15000.0,0.000403,120]
[406816052,1772206246105,-15000.0,0.000406,120]
[406816053,1772206246115,-15000.0,0.000409,120]
[406816054,1772206246125,-16878.76992952,0.00040967,15]
[406816055,1772206246134,-15000.0,0.000412,120]
[406816060,1772206246272,-583.33,0.00041396,120]
[406816062,1772206246281,-583.33,0.00041396,120]
[406816064,1772206246290,-583.33,0.00041396,120]
[406816066,1772206246300,-583.33,0.00041396,120]
[406816068,1772206246308,-583.33,0.00041396,120]
[406816069,1772206246317,-583.33,0.00041396,120]
[406816070,1772206246326,-583.33,0.00041396,120]
[406816071,1772206246335,-583.33,0.00041396,120]
[406816072,1772206246345,-583.33,0.00041396,120]
[406816073,1772206246355,-500.0,0.00041396,120]
[406816074,1772206246364,-500.0,0.00041396,120]
[406816075,1772206246374,-500.0,0.00041396,120]
[406816076,1772206246383,-500.0,0.00041396,120]
[406816077,1772206246393,-500.0,0.00041396,120]
[406816078,1772206246404,-500.0,0.00041396,120]
[406816079,1772206246413,-500.0,0.00041396,120]
[406816080,1772206246424,-500.0,0.00041396,120]
[406816081,1772206246434,-500.0,0.00041396,120]
[406816082,1772206246443,-500.0,0.00041396,45]
[406816083,1772206246452,-500.0,0.00041396,45]
[406816084,1772206246462,-500.0,0.00041396,45]
[406816085,1772206246471,-500.0,0.00041396,45]
[406816086,1772206246480,-500.0,0.00041396,45]
[406816087,1772206246490,-500.0,0.00041396,45]
[406816088,1772206246499,-500.0,0.00041396,45]
[406816089,1772206246508,-500.0,0.00041396,45]
[406816090,1772206246517,-500.0,0.00041396,120]
[406816091,1772206246526,-500.0,0.00041396,120]
[406816092,1772206246535,-500.0,0.00041396,120]
[406816093,1772206246544,-500.0,0.00041396,120]
[406816094,1772206246553,-500.0,0.00041396,120]
[406816095,1772206246562,-500.0,0.00041396,120]
[406816096,1772206246572,-500.0,0.00041396,120]
[406816097,1772206246581,-500.0,0.00041396,120]
[406816098,1772206246590,-583.33,0.00041399,120]
[406816099,1772206246600,-583.33,0.00041399,120]
[406816100,1772206246608,-583.33,0.00041399,120]
[406816101,1772206246617,-583.33,0.00041399,120]
[406816102,1772206246626,-583.41,0.00041399,120]
[406816103,1772206246637,-500.0,0.00041399,120]
[406816104,1772206246646,-553.51280634,0.00041399,120]
[406816105,1772206246656,-297.82549676,0.00041399,120]
[406816106,1772206246666,-15000.0,0.000415,120]
[406816107,1772206246678,-1083.06069021,0.00041536,2]
[406816108,1772206246688,-300.0,0.00041536,2]
[406816109,1772206246697,-438.21070336,0.00041536,2]
[406816110,1772206246706,-856.45675791,0.00041536,2]
[406816111,1772206246716,-306.29679311,0.00041536,2]
[406816112,1772206246726,-852.28136836,0.00041536,2]
[406816113,1772206246736,-1565.26887382,0.00041536,2]
[406816114,1772206246745,-307.55492962,0.00041536,2]
[406816115,1772206246755,-300.0,0.00041536,2]
[406816116,1772206246764,-300.0,0.00041536,2]
[406816117,1772206246774,-459.19979016,0.00041536,2]
[406816118,1772206246783,-300.0,0.00041536,2]
[406816119,1772206246792,-300.0,0.00041536,2]
[406816120,1772206246802,-371.72919772,0.00041536,2]
[406816121,1772206246811,-300.0,0.00041536,2]
[406816122,1772206246820,-342.99090995,0.00041536,2]
[406816123,1772206246829,-300.0,0.00041536,2]
[406816124,1772206246838,-419.81311211,0.00041536,2]
[406816125,1772206246847,-519.04834756,0.00041536,2]
[406816126,1772206246858,-306.51036434,0.00041536,2]
[406816127,1772206246867,-538.97683895,0.00041536,2]
[406816128,1772206246877,-300.0,0.00041536,2]
[406816129,1772206246886,-300.0,0.00041536,2]
[406816130,1772206246894,-511.30277196,0.00041536,2]
[406816131,1772206246903,-405.58612148,0.00041536,2]
[406816132,1772206246913,-528.6119758,0.00041536,2]
[406816133,1772206246923,-300.0,0.00041536,2]
[406816134,1772206246933,-1083.06069021,0.00041536,2]
[406816135,1772206246942,-458.40092172,0.00041536,2]
[406816136,1772206246951,-856.45675791,0.00041536,2]
[406816137,1772206246960,-306.29679311,0.00041536,2]
[406816138,1772206246969,-852.28136836,0.00041536,2]
[406816139,1772206246978,-1565.26887382,0.00041536,2]
[406816140,1772206246987,-307.55492962,0.00041536,2]
[406816141,1772206246996,-300.0,0.00041536,2]
[406816142,1772206247005,-459.19979016,0.00041536,2]
[406816143,1772206247015,-371.72919772,0.00041536,2]
[406816144,1772206247024,-300.0,0.00041536,2]
[406816145,1772206247033,-519.04834756,0.00041536,2]
[406816146,1772206247041,-306.51036434,0.00041536,2]
[406816147,1772206247050,-300.0,0.00041536,2]
[406816148,1772206247059,-1083.06069021,0.00041536,2]
[406816149,1772206247067,-15000.0,0.000418,120]
[406816150,1772206247077,-39740.82213888,0.00041989,15]
[406816151,1772206247088,-1488.33,0.00042,30]
[406816152,1772206247108,-175.22654387,0.00042,14]
[406816153,1772206247129,-156.0,0.000421,120]
[406816154,1772206247150,-150.0,0.00042173,120]
[406816155,1772206247161,-1208.0,0.00042498,2]
[406816156,1772206247171,-895.83,0.00042599,120]
[406816157,1772206247180,-620.13,0.00042599,120]
[406816158,1772206247189,-4000.0,0.0004274,14]
[406816159,1772206247198,-1097.67,0.000428,14]
[406816160,1772206247207,-685.01,0.000428,14]
[406816161,1772206247215,-500.0,0.00043,120]
[406816162,1772206247224,-500.0,0.00043,120]
[406816163,1772206247234,-500.0,0.00043014,60]
[406816164,1772206247242,-500.0,0.00043014,60]
[406816165,1772206247251,-500.0,0.00043014,60]
[406816166,1772206247260,-500.0,0.00043014,60]
[406816167,1772206247269,-500.0,0.00043014,2]
[406816168,1772206247278,-150.0,0.00043014,60]
[406816169,1772206247287,-150.0,0.00043014,60]
[406816170,1772206247298,-468.0,0.00043014,60]
[406816171,1772206247308,-205.97279745,0.00043014,60]
[406816172,1772206247317,-150.0,0.00043014,60]
[406816173,1772206247325,-150.0,0.00043014,120]
[406816174,1772206247334,-150.0,0.00043014,60]
[406816175,1772206247343,-500.0,0.00043014,60]
[406816176,1772206247351,-500.0,0.00043014,60]
[406816177,1772206247360,-500.0,0.00043014,60]
[406816178,1772206247369,-150.0,0.00043014,2]
[406816179,1772206247378,-150.0,0.00043014,2]
[406816180,1772206247387,-500.0,0.00043069,60]
[406816181,1772206247395,-500.0,0.00043069,60]
[406816182,1772206247405,-500.0,0.00043069,60]
[406816183,1772206247414,-500.0,0.00043069,60]
[406816184,1772206247424,-500.0,0.00043069,2]
[406816185,1772206247433,-150.0,0.00043069,60]
[406816186,1772206247442,-150.0,0.00043069,60]
[406816187,1772206247451,-468.0,0.00043069,60]
[406816188,1772206247460,-150.0,0.00043069,120]
[406816189,1772206247469,-155.24410738,0.00043069,60]
[406816190,1772206247478,-500.0,0.00043069,60]
[406816191,1772206247487,-500.0,0.00043069,60]
[406816192,1772206247495,-500.0,0.00043069,60]
[406816193,1772206247505,-158.41955894,0.00043069,2]
[406816194,1772206247513,-164.37590583,0.00043124,60]
[406816195,1772206247522,-500.0,0.00043124,60]
[406816196,1772206247531,-500.0,0.00043124,60]
[406816197,1772206247540,-500.0,0.00043124,60]
[406816198,1772206247549,-500.0,0.00043124,2]
[406816199,1772206247558,-200.0,0.00043124,60]
[406816200,1772206247567,-238.75555333,0.00043124,60]
[406816201,1772206247576,-468.0,0.00043124,60]
[406816202,1772206247585,-200.0,0.00043124,120]
[406816203,1772206247594,-500.0,0.00043124,60]
[406816204,1772206247603,-500.0,0.00043124,60]
[406816205,1772206247613,-500.0,0.00043124,60]
[406816206,1772206247622,-500.0,0.00043178,60]
[406816207,1772206247631,-500.0,0.00043178,60]
[406816208,1772206247640,-500.0,0.00043178,2]
[406816209,1772206247650,-500.0,0.00043178,60]
[406816210,1772206247659,-468.0,0.00043178,60]
[406816211,1772206247669,-500.0,0.00043178,60]
[406816212,1772206247679,-500.0,0.00043178,60]
[406816214,1772206247688,-500.0,0.00043178,60]
[406816216,1772206247698,-500.0,0.00043233,60]
[406816218,1772206247707,-500.0,0.00043233,60]
[406816220,1772206247716,-500.0,0.00043233,2]
[406816222,1772206247725,-500.0,0.00043233,60]
[406816224,1772206247734,-468.0,0.00043233,60]
[406816226,1772206247744,-500.0,0.00043233,60]
[406816228,1772206247753,-457.08298048,0.00043233,60]
[406816230,1772206247762,-500.0,0.00043233,60]
[406816231,1772206247772,-2035.3881807,0.00043281,7]
[406816232,1772206247781,-500.0,0.00043288,60]
[406816233,1772206247790,-500.0,0.00043288,60]
[406816234,1772206247799,-500.0,0.00043288,2]
[406816235,1772206247809,-150.0,0.00043288,60]
[406816236,1772206247819,-468.0,0.00043288,60]
[406816237,1772206247829,-500.0,0.00043288,60]
[406816238,1772206247838,-500.0,0.00043288,60]
[406816239,1772206247848,-500.0,0.00043288,120]
[406816240,1772206247859,-500.0,0.00043343,60]
[406816241,1772206247869,-500.0,0.00043343,60]
[406816242,1772206247878,-500.0,0.00043343,2]
[406816243,1772206247887,-468.0,0.00043343,60]
[406816244,1772206247897,-500.0,0.00043343,60]
[406816245,1772206247906,-500.0,0.00043343,60]
[406816246,1772206247915,-500.0,0.00043343,120]
[406816247,1772206247925,-500.0,0.00043398,60]
[406816248,1772206247934,-500.0,0.00043398,60]
[406816249,1772206247943,-500.0,0.00043398,2]
[406816250,1772206247952,-468.0,0.00043398,60]
[406816251,1772206247962,-150.0,0.00043398,60]
[406816252,1772206247972,-500.0,0.00043398,60]
[406816253,1772206247981,-500.0,0.00043398,120]
[406816254,1772206247990,-497.09622115,0.00043452,60]
[406816255,1772206247999,-500.0,0.00043452,60]
[406816256,1772206248008,-500.0,0.00043452,2]
[406816257,1772206248017,-468.0,0.00043452,60]
[406816258,1772206248026,-500.0,0.00043452,60]
[406816259,1772206248036,-500.0,0.00043452,120]
[406816260,1772206248046,-500.0,0.00043507,60]
[406816261,1772206248055,-500.0,0.00043507,2]
[406816262,1772206248064,-468.0,0.00043507,60]
[406816263,1772206248073,-500.0,0.00043507,60]
[406816264,1772206248086,-500.0,0.00043507,120]
[406816265,1772206248095,-500.0,0.00043534,2]
[406816266,1772206248105,-500.0,0.00043562,60]
[406816267,1772206248114,-500.0,0.00043562,2]
[406816268,1772206248125,-468.0,0.00043562,60]
[406816269,1772206248135,-500.0,0.00043562,60]
[406816270,1772206248144,-500.0,0.00043562,120]
[406816271,1772206248155,-500.0,0.00043617,60]
[406816272,1772206248166,-352.01719171,0.00043617,2]
[406816273,1772206248176,-468.0,0.00043617,60]
[406816274,1772206248186,-500.0,0.00043617,60]
[406816275,1772206248195,-500.0,0.00043617,120]
[406816276,1772206248205,-357.0,0.00043672,60]
[406816277,1772206248214,-468.0,0.00043672,60]
[406816278,1772206248223,-500.0,0.00043672,60]
[406816279,1772206248233,-500.0,0.00043672,120]
[406816280,1772206248243,-468.0,0.00043726,60]
[406816281,1772206248252,-500.0,0.00043726,60]
[406816282,1772206248262,-500.0,0.00043726,120]
[406816283,1772206248272,-204.48,0.00043738,14]
[406816284,1772206248281,-468.0,0.00043781,60]
[406816285,1772206248291,-500.0,0.00043781,120]
[406816286,1772206248300,-509.0,0.00043828,27]
[406816287,1772206248311,-468.0,0.00043836,60]
[406816288,1772206248331,-500.0,0.00043836,120]
[406816289,1772206248344,-196.82672014,0.0004384,120]
[406816290,1772206248353,-196.82672014,0.0004384,120]
[406816291,1772206248362,-196.82,0.0004384,120]
[406816292,1772206248371,-153.087449,0.0004384,120]
[406816293,1772206248380,-153.087449,0.0004384,120]
[406816294,1772206248389,-153.087449,0.0004384,120]
[406816295,1772206248399,-204.48,0.00043858,14]
[406816296,1772206248408,-468.0,0.00043891,60]
[406816297,1772206248417,-500.0,0.00043891,120]
[406816299,1772206248427,-468.0,0.00043946,60]
[406816301,1772206248436,-500.0,0.00043946,120]
[406816303,1772206248445,-204.48,0.00043979,14]
[406816305,1772206248455,-468.0,0.00044,60]
[406816307,1772206248464,-500.0,0.00044,120]
[406816309,1772206248473,-468.0,0.00044055,60]
[406816311,1772206248482,-245.0,0.00044055,120]
[406816313,1772206248492,-25000.0,0.00044082,15]
[406816315,1772206248500,-25000.0,0.00044091,15]
[406816317,1772206248509,-848.0,0.00044096,16]
[406816319,1772206248519,-156.0,0.000441,120]
[406816321,1772206248528,-19420.49031765,0.000441,15]
[406816323,1772206248537,-25000.0,0.000441,15]
[406816325,1772206248547,-500.0,0.00044109,120]
[406816327,1772206248558,-500.0,0.00044109,120]
[406816329,1772206248567,-612.67878954,0.00044109,120]
[406816330,1772206248576,-500.0,0.00044109,120]
[406816331,1772206248586,-500.0,0.00044109,120]
[406816332,1772206248595,-500.0,0.00044109,120]
[406816333,1772206248604,-500.0,0.00044109,120]
[406816334,1772206248614,-500.0,0.00044109,120]
[406816335,1772206248623,-184.2059386,0.00044109,120]
[406816336,1772206248632,-468.0,0.0004411,60]
[406816337,1772206248641,-2195.67203992,0.00044129,28]
[406816338,1772206248651,-2834.0,0.00044137,16]
[406816339,1772206248660,-468.0,0.00044165,60]
[406816340,1772206248670,-468.0,0.00044219,60]
[406816341,1772206248680,-486.0,0.00044274,60]
[406816342,1772206248689,-150.0,0.00044281,120]
[406816343,1772206248699,-1488.33,0.000443,30]
[406816344,1772206248708,-500.0,0.00044331,72]
[406816345,1772206248718,-153.087449,0.00044356,120]
[406816346,1772206248728,-845.0,0.00044729,16]
[406816347,1772206248737,-2000.0,0.000449,2]
[406816348,1772206248747,-16878.76992952,0.000449,15]
[406816349,1772206248757,-179.2846619,0.0004491,120]
[406816350,1772206248767,-895.83,0.00044999,120]
[406816351,1772206248777,-895.83,0.00044999,120]
[406816352,1772206248786,-895.83,0.00044999,120]
[406816353,1772206248795,-895.83,0.00044999,120]
[406816354,1772206248805,-895.91,0.00044999,120]
[406816355,1772206248814,-620.13,0.00044999,120]
[406816356,1772206248823,-620.13,0.00044999,120]
[406816357,1772206248833,-620.13,0.00044999,120]
[406816358,1772206248843,-620.13,0.00044999,120]
[406816359,1772206248852,-620.3381671,0.00044999,120]
[406816360,1772206248861,-122959.69785834,0.00045,120]
[406816361,1772206248870,-1000.0,0.00045,120]
[406816362,1772206248879,-1572.46566508,0.00045133,17]